bitfinex-derivatives/quotes_BTCF0:USTF0_20241125
["timestamp","ask_amount","ask_price","bid_price","bid_amount"]
[1732515869880,0.10777441,98348.0,98347.0,0.00012254]
[1732515870586,0.050787,98337.0,98336.0,0.13504]
[1732515870788,0.08870066,98337.0,98336.0,0.13504]
[1732515870986,0.09121111,98337.0,98336.0,0.13504]
[1732515871591,0.09121111,98337.0,98336.0,0.00013194]
[1732515872892,0.09121111,98337.0,98331.0,0.49648]
[1732515872893,0.10778041,98337.0,98331.0,0.00064]
[1732515873089,0.050795,98321.0,98320.0,0.13508]
[1732515873299,0.08870866,98321.0,98320.0,0.13508]
[1732515873487,0.09121911,98321.0,98320.0,0.13508]
[1732515873989,0.09121911,98321.0,98320.0,0.13515224]
[1732515874487,0.07426043,98321.0,98320.0,7.224e-05]
[1732515877394,0.07367204,98321.0,98320.0,7.224e-05]
[1732515879795,0.02287704,98321.0,98320.0,7.224e-05]
[1732515881203,0.02263895,98321.0,98320.0,7.224e-05]
[1732515881591,0.02261664,98321.0,98320.0,7.224e-05]
[1732515883195,0.02261664,98321.0,98320.0,0.30519224]
[1732515883390,0.050787,98337.0,98320.0,0.30519224]
[1732515883700,0.3608,98354.0,98342.0,0.050784]
[1732515883701,0.050784,98343.0,98342.0,0.050784]
[1732515883898,0.02468592,98350.0,98345.0,0.050782]
[1732515883899,0.0909853,98347.0,98345.0,0.050782]
[1732515884092,0.02468592,98350.0,98348.0,0.050781]
[1732515884396,0.0909853,98356.0,98352.0,0.050779]
[1732515884595,0.0909853,98355.0,98352.0,0.050779]
[1732515884796,0.0909853,98356.0,98353.0,0.0004]
[1732515885001,0.0909853,98357.0,98353.0,0.0004]
[1732515885193,0.050777,98355.0,98353.0,0.0004]
[1732515885599,0.4517853,98354.0,98353.0,0.0004]
[1732515886399,0.3608,98354.0,98353.0,0.0004]
[1732515886697,0.3934,98354.0,98353.0,0.0004]
[1732515887598,0.5151102,98354.0,98353.0,0.0004]
[1732515888504,0.3934,98354.0,98353.0,0.0004]
[1732515889591,0.0326,98354.0,98353.0,0.0004]
[1732515890301,0.3934,98354.0,98353.0,0.0004]
[1732515890904,0.51494185,98354.0,98353.0,0.0004]
[1732515891302,0.53100685,98354.0,98353.0,0.0004]
[1732515892306,0.51494185,98354.0,98353.0,0.0004]
[1732515894118,0.3934,98354.0,98353.0,0.0004]
[1732515895517,0.41353016,98354.0,98353.0,0.0004]
[1732515895719,0.05273016,98354.0,98353.0,0.0004]
[1732515896720,0.05274445,98354.0,98353.0,0.0004]
[1732515897510,0.05274445,98354.0,98353.0,0.051178]
[1732515897511,0.10352245,98354.0,98353.0,0.051178]
[1732515899624,0.05274445,98354.0,98353.0,0.051178]
[1732515900017,0.04277232,98354.0,98353.0,0.051178]
[1732515900224,0.05275447,98354.0,98353.0,0.051178]
[1732515900524,0.04258215,98354.0,98353.0,0.051178]
[1732515900820,0.05257581,98354.0,98353.0,0.051178]
[1732515901025,0.04259366,98354.0,98353.0,0.051178]
[1732515901221,0.05231356,98354.0,98353.0,0.051178]
[1732515901522,0.05231356,98354.0,98353.0,0.0004]
[1732515901523,0.06836607,98354.0,98353.0,0.0004]
[1732515901715,0.06836607,98354.0,98353.0,9.16e-06]
[1732515902123,1.56836607,98354.0,98353.0,9.16e-06]
[1732515902813,1.56836607,98354.0,98343.0,0.050783]
[1732515902814,1.56854123,98354.0,98343.0,0.050783]
[1732515903016,0.09111601,98344.0,98343.0,0.050783]
[1732515903215,0.12745725,98344.0,98343.0,0.050783]
[1732515903418,0.09151602,98344.0,98343.0,0.050783]
[1732515903617,0.0205201,98344.0,98343.0,0.050783]
[1732515905030,0.14200812,98344.0,98333.0,0.49576]
[1732515905221,0.050788,98335.0,98333.0,0.13496]
[1732515905415,0.050788,98335.0,98332.0,0.050789]
[1732515905416,0.0205201,98334.0,98332.0,0.050789]
[1732515905728,0.0205201,98333.0,98332.0,0.07563246]
[1732515906622,0.01036809,98333.0,98332.0,0.07563246]
[1732515907126,0.00040001,98333.0,98332.0,0.07563246]
[1732515907314,0.01000968,98333.0,98332.0,0.07563246]
[1732515907518,0.01989269,98333.0,98332.0,0.07563246]
[1732515907914,0.01989269,98333.0,98332.0,0.43643246]
[1732515908115,0.01989269,98333.0,98332.0,0.74151246]
[1732515908519,0.09115834,98352.0,98350.0,0.05078]
[1732515908918,1.86136001,98362.0,98352.0,0.050779]
[1732515908919,0.09115834,98353.0,98352.0,0.050779]
[1732515909416,0.09115834,98353.0,98352.0,0.051179]
[1732515909620,0.10105119,98353.0,98352.0,0.051179]
[1732515909920,0.00989285,98353.0,98352.0,0.051179]
[1732515911023,0.00988583,98353.0,98352.0,0.051179]
[1732515912130,0.00988583,98353.0,98352.0,0.23266262]
[1732515912530,0.13137385,98353.0,98352.0,0.051179]
[1732515913125,0.13159579,98353.0,98352.0,0.23272293]
[1732515913630,0.00988583,98353.0,98352.0,0.051179]
[1732515914319,0.00988583,98353.0,98352.0,0.25831265]
[1732515914519,0.02599635,98353.0,98352.0,0.25831265]
[1732515914730,0.0262963,98353.0,98352.0,0.07674503]
[1732515915126,0.02629585,98353.0,98352.0,0.07674503]
[1732515915330,0.01018578,98353.0,98352.0,0.07674503]
[1732515915531,0.13190484,98353.0,98352.0,0.07674503]
[1732515915831,0.01018578,98353.0,98352.0,0.07674503]
[1732515916532,0.02626709,98353.0,98352.0,0.25831265]
[1732515918026,0.02626709,98353.0,98352.0,0.07674503]
[1732515919222,0.07704509,98353.0,98352.0,0.07674503]
[1732515919927,0.19875332,98353.0,98352.0,0.07674503]
[1732515920123,0.19875332,98353.0,98352.0,0.051179]
[1732515920320,0.07704509,98353.0,98352.0,0.051179]
[1732515920522,0.08730971,98353.0,98352.0,0.051179]
[1732515922225,0.60044335,98353.0,98352.0,0.0004]
[1732515922428,0.050787,98337.0,98335.0,0.1348]
[1732515922628,0.050791,98329.0,98327.0,0.050792]
[1732515922825,0.03653171,98328.0,98327.0,0.050792]
[1732515923730,0.050794,98323.0,98322.0,0.0248202]
[1732515923926,0.050794,98323.0,98321.0,0.050795]
[1732515923927,0.08732571,98323.0,98321.0,0.050795]
[1732515924122,0.050795,98321.0,98320.0,7.224e-05]
[1732515924420,0.17900071,98321.0,98320.0,7.224e-05]
[1732515925523,0.08772671,98321.0,98320.0,7.224e-05]
[1732515926031,0.17900071,98321.0,98320.0,7.224e-05]
[1732515926227,0.17902381,98321.0,98320.0,7.224e-05]
[1732515926427,0.20948013,98321.0,98320.0,7.224e-05]
[1732515926725,0.08774981,98321.0,98320.0,7.224e-05]
[1732515927126,0.20932708,98321.0,98320.0,7.224e-05]
[1732515927631,0.08774981,98321.0,98320.0,7.224e-05]
[1732515928134,0.03695481,98321.0,98320.0,7.224e-05]
[1732515928330,0.03695481,98321.0,98320.0,0.06607224]
[1732515928927,0.03695481,98321.0,98320.0,0.24777624]
[1732515929229,0.03695481,98321.0,98320.0,0.06607224]
[1732515930035,0.03765028,98321.0,98320.0,0.13491224]
[1732515932925,0.03765028,98321.0,98320.0,7.224e-05]
[1732515933829,0.02100942,98321.0,98320.0,7.224e-05]
[1732515934032,0.03672649,98321.0,98320.0,7.224e-05]
[1732515934434,0.12787705,98321.0,98320.0,7.224e-05]
[1732515934837,0.03672649,98321.0,98320.0,7.224e-05]
[1732515935030,0.03682541,98321.0,98320.0,7.224e-05]
[1732515935434,0.03682541,98321.0,98304.0,0.18134623]
[1732515935435,0.050803,98305.0,98304.0,0.185643]
[1732515935733,0.07145711,98305.0,98304.0,0.050803]
[1732515936138,0.050804,98303.0,98302.0,0.13484]
[1732515936334,0.07105811,98303.0,98302.0,0.13484]
[1732515936544,0.07145811,98303.0,98302.0,0.13493129]
[1732515936733,0.07145811,98303.0,98302.0,9.129e-05]
[1732515937945,0.051204,98303.0,98302.0,9.129e-05]
[1732515938139,0.07107425,98303.0,98302.0,9.129e-05]
[1732515940439,0.01042378,98303.0,98302.0,9.129e-05]
[1732515940640,0.0004,98303.0,98302.0,9.129e-05]
[1732515941744,0.00994521,98303.0,98302.0,9.129e-05]
[1732515942836,0.10100479,98303.0,98302.0,9.129e-05]
[1732515943037,0.00994521,98303.0,98302.0,9.129e-05]
[1732515943645,0.0197991,98303.0,98302.0,9.129e-05]
[1732515945240,0.01004255,98303.0,98302.0,9.129e-05]
[1732515945440,0.01989585,98303.0,98302.0,9.129e-05]
[1732515945745,0.01004255,98303.0,98302.0,9.129e-05]
[1732515946444,0.0004,98303.0,98302.0,9.129e-05]
[1732515946846,0.051204,98303.0,98302.0,9.129e-05]
[1732515949551,0.14226358,98303.0,98302.0,9.129e-05]
[1732515950149,0.051204,98303.0,98302.0,9.129e-05]
[1732515953057,0.17278127,98303.0,98302.0,9.129e-05]
[1732515953849,1.67278127,98303.0,98302.0,9.129e-05]
[1732515955655,1.551204,98303.0,98302.0,9.129e-05]
[1732515956354,1.551204,98303.0,98302.0,3.9e-07]
[1732515957055,1.551204,98303.0,98302.0,0.05080539]
[1732515958258,1.67278775,98303.0,98302.0,0.05080539]
[1732515958449,1.551204,98303.0,98302.0,0.05080539]
[1732515958650,1.67280854,98303.0,98302.0,0.05080539]
[1732515959051,1.551204,98303.0,98302.0,0.05080539]
[1732515960955,1.551204,98303.0,98302.0,3.9e-07]
[1732515962754,1.56075188,98303.0,98302.0,3.9e-07]
[1732515963466,0.00994788,98303.0,98302.0,0.05080539]
[1732515963763,0.0004,98303.0,98302.0,0.05080539]
[1732515964463,0.0004,98303.0,98302.0,0.23215162]
[1732515965466,0.0004,98303.0,98302.0,0.05080539]
[1732515966266,0.15255915,98303.0,98302.0,0.05080539]
[1732515966469,0.0004,98303.0,98302.0,0.23286786]
[1732515966662,0.15255915,98303.0,98302.0,0.23286786]
[1732515967468,0.15255915,98303.0,98302.0,0.05080539]
[1732515967670,0.15255915,98303.0,98302.0,0.23290387]
[1732515968371,0.0004,98303.0,98302.0,0.18209887]
[1732515968671,0.0004,98303.0,98302.0,3.9e-07]
[1732515968672,0.0595646,98303.0,98302.0,3.9e-07]
[1732515968872,0.10027353,98303.0,98302.0,3.9e-07]
[1732515969071,0.16257353,98303.0,98302.0,3.9e-07]
[1732515969374,0.16257948,98303.0,98302.0,3.9e-07]
[1732515970373,1.66257948,98303.0,98302.0,3.9e-07]
[1732515971272,1.64281393,98303.0,98302.0,3.9e-07]
[1732515971476,1.6625063,98303.0,98302.0,3.9e-07]
[1732515972474,1.84529912,98303.0,98302.0,3.9e-07]
[1732515973377,1.6625063,98303.0,98302.0,3.9e-07]
[1732515973777,1.9677063,98303.0,98302.0,3.9e-07]
[1732515974282,2.12513267,98303.0,98279.0,0.18209848]
[1732515974470,0.050816,98280.0,98279.0,0.18209848]
[1732515974671,0.07050837,98280.0,98278.0,0.59435548]
[1732515974871,0.07050837,98280.0,98278.0,0.411617]
[1732515974872,0.01969237,98279.0,98278.0,0.411617]
[1732515975078,0.02009237,98279.0,98278.0,0.411617]
[1732515975276,0.02009237,98279.0,98278.0,0.41170204]
[1732515976179,0.14189226,98279.0,98278.0,0.41170204]
[1732515976477,0.02009237,98279.0,98278.0,0.41170204]
[1732515977577,0.14187163,98279.0,98278.0,0.43646141]
[1732515978281,0.02009237,98279.0,98278.0,0.43646141]
[1732515978776,0.02009237,98279.0,98278.0,0.38564441]
[1732515978976,0.14187163,98279.0,98278.0,0.36088504]
[1732515979279,0.14187163,98279.0,98278.0,8.504e-05]
[1732515979474,0.02009237,98279.0,98278.0,8.504e-05]
[1732515982375,0.14177348,98279.0,98278.0,8.504e-05]
[1732515982873,0.1854004,98287.0,98278.0,8.504e-05]
[1732515982874,0.01119003,98283.0,98278.0,0.80084504]
[1732515983075,0.12168111,98295.0,98290.0,0.05081]
[1732515983283,0.050808,98297.0,98290.0,0.67761848]
[1732515983484,0.050808,98297.0,98290.0,0.49552]
[1732515983674,1.62220112,98303.0,98296.0,0.0004]
[1732515983878,1.62220112,98303.0,98299.0,0.59370448]
[1732515983879,0.12168111,98302.0,98299.0,0.59370448]
[1732515984185,0.17248511,98303.0,98302.0,0.0004]
[1732515984486,0.050804,98303.0,98302.0,0.0008]
[1732515990386,0.185484,98303.0,98302.0,0.0008]
[1732515991792,0.23489845,98303.0,98302.0,0.0008]
[1732515992285,0.33757672,98303.0,98302.0,0.0008]
[1732515992482,0.185484,98303.0,98302.0,0.0008]
[1732515992684,0.2348984,98303.0,98302.0,0.0008]
[1732515993479,0.23489909,98303.0,98302.0,0.0008]
[1732515993886,0.54009909,98303.0,98281.0,0.18177844]
[1732515994187,0.54009909,98303.0,98280.0,0.3608]
[1732515994188,0.05161499,98282.0,98280.0,0.3608]
[1732515994596,0.00079999,98281.0,98280.0,0.3608]
[1732515994977,0.00079999,98281.0,98280.0,0.54257844]
[1732515995183,0.00079999,98281.0,98280.0,0.3608]
[1732515996383,0.00079999,98281.0,98280.0,0.411616]
[1732515998181,0.00079999,98281.0,98280.0,0.59341221]
[1732515998483,0.00079999,98281.0,98280.0,0.411616]
[1732515999394,0.00079999,98281.0,98280.0,0.59345334]
[1732515999687,0.00079999,98281.0,98280.0,0.411616]
[1732516000488,0.00079999,98281.0,98280.0,0.59345833]
[1732516000688,0.00079999,98281.0,98280.0,0.411616]
[1732516010288,0.05161599,98281.0,98280.0,0.411616]
[1732516014096,0.05161599,98281.0,98280.0,0.3608]
[1732516017298,0.00079999,98281.0,98280.0,0.716856]
[1732516017502,0.15210342,98297.0,98280.0,1.81996863]
[1732516017694,0.15210342,98312.0,98310.0,0.0508]
[1732516018003,0.2147497,98313.0,98312.0,0.0508]
[1732516018199,0.0625,98313.0,98312.0,0.0508]
[1732516018501,0.0625,98313.0,98312.0,0.0512]
[1732516018810,0.0323,98313.0,98312.0,0.0512]
[1732516022791,0.0323,98313.0,98312.0,0.412]
[1732516027207,0.3931,98313.0,98312.0,0.0004]
[1732516027397,0.3931,98313.0,98312.0,1.2e-06]
[1732516027699,0.0323,98313.0,98312.0,1.2e-06]
[1732516028402,0.04193474,98313.0,98312.0,1.2e-06]
[1732516028906,0.0518297,98313.0,98312.0,1.2e-06]
[1732516030800,0.0323,98313.0,98312.0,1.2e-06]
[1732516031009,0.04198661,98313.0,98312.0,1.2e-06]
[1732516031392,0.0323,98313.0,98312.0,1.2e-06]
[1732516037512,0.0323,98313.0,98312.0,0.3608012]
[1732516039012,0.0323,98313.0,98312.0,1.2e-06]
[1732516046314,0.3931,98313.0,98312.0,1.2e-06]
[1732516047119,0.44250679,98313.0,98312.0,1.2e-06]
[1732516048725,0.88210679,98313.0,98312.0,1.2e-06]
[1732516048916,1.18210679,98313.0,98312.0,1.2e-06]
[1732516049117,1.18210679,98313.0,98287.0,0.18193104]
[1732516049118,0.050807,98297.0,98287.0,0.18193104]
[1732516049316,1.60021379,98297.0,98286.0,0.3608]
[1732516050124,1.6006138,98297.0,98286.0,0.3608]
[1732516051828,0.050816,98280.0,98278.0,0.18201608]
[1732516052028,0.050816,98280.0,98278.0,8.504e-05]
[1732516052329,0.033,98279.0,98278.0,8.504e-05]
[1732516052626,0.21690931,98279.0,98278.0,8.504e-05]
[1732516053332,0.0647,98279.0,98278.0,8.504e-05]
[1732516055532,0.4255,98279.0,98278.0,8.504e-05]
[1732516056828,0.45029243,98279.0,98278.0,8.504e-05]
[1732516058325,0.75553243,98279.0,98278.0,8.504e-05]
[1732516058628,0.050824,98265.0,98263.0,0.050825]
[1732516059024,0.0008,98264.0,98263.0,0.050825]
[1732516059432,0.0008,98264.0,98263.0,0.05093144]
[1732516062124,0.0008,98264.0,98263.0,0.00010644]
[1732516063136,0.0008,98264.0,98263.0,0.13458644]
[1732516063836,0.0008,98264.0,98263.0,0.18541144]
[1732516064535,0.051624,98264.0,98263.0,0.18541144]
[1732516067032,0.051624,98264.0,98263.0,0.00010644]
[1732516071635,0.07656991,98264.0,98263.0,0.00010644]
[1732516077338,0.0008,98264.0,98263.0,0.00010644]
[1732516077539,0.0008,98264.0,98263.0,0.13450644]
[1732516077740,0.1771068,98280.0,98263.0,0.13450644]
[1732516077741,0.12156214,98276.0,98264.0,0.050824]
[1732516077940,0.12156214,98281.0,98275.0,0.3608]
[1732516078145,0.12155315,98281.0,98280.0,0.050816]
[1732516078341,0.050815,98283.0,98275.0,0.3612]
[1732516078540,0.050815,98283.0,98281.0,0.050815]
[1732516078746,0.050815,98283.0,98282.0,0.0004]
[1732516079039,0.17243705,98283.0,98282.0,0.0004]
[1732516079638,0.050815,98283.0,98282.0,0.0004]
[1732516080460,0.3608,98286.0,98285.0,0.050813]
[1732516081047,0.3608,98286.0,98285.0,0.051213]
[1732516082941,0.3608,98286.0,98285.0,0.0004]
[1732516087249,0.51300931,98286.0,98285.0,0.0004]
[1732516087442,0.41022196,98286.0,98285.0,0.0004]
[1732516088249,0.41022196,98286.0,98285.0,2.056e-05]
[1732516088752,0.59307037,98286.0,98285.0,2.056e-05]
[1732516088945,0.54462196,98286.0,98285.0,2.056e-05]
[1732516089151,0.3608,98286.0,98285.0,2.056e-05]
[1732516090448,0.15208221,98291.0,98285.0,2.056e-05]
[1732516090653,0.12164264,98292.0,98285.0,2.056e-05]
[1732516090847,0.12164264,98291.0,98285.0,2.056e-05]
[1732516091152,0.05081,98293.0,98292.0,0.05081]
[1732516091346,0.17242184,98293.0,98292.0,0.05081]
[1732516091547,0.17242184,98293.0,98292.0,0.05121]
[1732516092045,0.05081,98293.0,98292.0,0.05121]
[1732516092441,0.12158198,98294.0,98293.0,0.050809]
[1732516092645,0.12158198,98294.0,98292.0,0.0004]
[1732516092646,0.12158198,98296.0,98292.0,0.3612]
[1732516092843,0.12158198,98297.0,98295.0,0.050808]
[1732516093047,0.12158198,98297.0,98295.0,0.051208]
[1732516093252,0.12158198,98297.0,98296.0,0.0004]
[1732516093453,0.050806,98300.0,98297.0,0.050807]
[1732516093454,0.12158198,98298.0,98297.0,0.050807]
[1732516093650,0.12158198,98299.0,98297.0,0.050807]
[1732516093851,0.050806,98300.0,98299.0,0.050806]
[1732516096052,0.050806,98300.0,98298.0,0.0004]
[1732516096946,0.0004,98299.0,98298.0,0.0004]
[1732516097155,0.3612,98299.0,98298.0,0.0004]
[1732516098047,0.3612,98299.0,98298.0,6.32e-06]
[1732516099157,0.3612,98299.0,98275.0,0.051218]
[1732516099158,0.050818,98277.0,98275.0,0.051218]
[1732516099660,0.00117945,98276.0,98275.0,0.051218]
[1732516104459,0.09233131,98276.0,98275.0,0.051218]
[1732516104658,0.00117945,98276.0,98275.0,0.051218]
[1732516108854,0.00117945,98276.0,98275.0,0.23314904]
[1732516111375,0.00117945,98276.0,98275.0,0.051218]
[1732516112164,0.00117945,98276.0,98275.0,0.356498]
[1732516112363,0.00117945,98276.0,98275.0,0.418798]
[1732516112568,0.00117945,98276.0,98275.0,0.98809175]
[1732516112766,0.00117945,98276.0,98275.0,0.68470742]
[1732516113664,0.00117945,98276.0,98275.0,0.81898742]
[1732516115366,0.00117945,98276.0,98275.0,0.553078]
[1732516118666,0.00117945,98276.0,98275.0,0.522878]
[1732516119076,0.00117945,98276.0,98275.0,0.051218]
[1732516119266,0.00117945,98276.0,98275.0,0.185498]
[1732516119968,0.09249695,98276.0,98275.0,0.185498]
[1732516120173,0.09249695,98276.0,98275.0,0.051218]
[1732516120372,0.09249695,98276.0,98275.0,0.185498]
[1732516120373,0.00117945,98276.0,98275.0,0.185498]
[1732516122370,0.00117945,98276.0,98275.0,0.051218]
[1732516122572,0.00117945,98276.0,98275.0,0.185498]
[1732516122867,0.00117945,98276.0,98275.0,0.051218]
[1732516123173,0.00117945,98276.0,98275.0,0.185498]
[1732516130367,0.00117945,98276.0,98275.0,0.051218]
[1732516130673,0.00117945,98276.0,98275.0,0.185498]
[1732516130674,0.05199745,98276.0,98275.0,0.185498]
[1732516135598,0.05199745,98276.0,98275.0,0.13456]
[1732516136100,0.05199745,98276.0,98275.0,0.37737279]
[1732516136593,0.17345059,98276.0,98275.0,0.37738944]
[1732516137191,0.17345059,98276.0,98275.0,0.24282944]
[1732516137400,0.17345059,98276.0,98275.0,0.37698944]
[1732516137697,0.05199745,98276.0,98275.0,0.37698944]
[1732516137899,0.17345059,98276.0,98275.0,0.37698944]
[1732516138602,0.05199745,98276.0,98275.0,0.37698944]
[1732516138803,0.17345059,98276.0,98275.0,0.37698944]
[1732516139004,0.05199745,98276.0,98275.0,0.13416]
[1732516144404,0.12304279,98276.0,98274.0,0.38603144]
[1732516144708,0.20457158,98275.0,98274.0,0.52019144]
[1732516145900,0.08269845,98275.0,98274.0,0.52019144]
[1732516146299,0.08269845,98275.0,98274.0,0.57101044]
[1732516146507,0.03187945,98275.0,98274.0,0.57101044]
[1732516151206,0.00117945,98275.0,98274.0,0.87629044]
[1732516151406,0.00117945,98275.0,98274.0,1.44500198]
[1732516151608,0.00117945,98275.0,98274.0,1.14167689]
[1732516152207,0.00117945,98275.0,98274.0,0.83639689]
[1732516154008,0.00117945,98275.0,98265.0,0.18117652]
[1732516154009,0.00127261,98275.0,98268.0,0.30339436]
[1732516154201,0.00127261,98275.0,98263.0,0.00010644]
[1732516154202,0.15181642,98272.0,98267.0,0.18217897]
[1732516154404,0.15181642,98269.0,98263.0,0.00010644]
[1732516154610,0.050824,98265.0,98263.0,0.00010644]
[1732516155415,0.00117945,98264.0,98263.0,0.00010644]
[1732516163209,0.12282025,98264.0,98263.0,0.00010644]
[1732516163611,0.00117945,98264.0,98263.0,0.00010644]
[1732516164015,0.36197945,98264.0,98263.0,0.00010644]
[1732516164908,0.48360068,98264.0,98263.0,0.00010644]
[1732516166516,0.36197945,98264.0,98263.0,0.00010644]
[1732516167414,0.48356861,98264.0,98263.0,0.00010644]
[1732516167610,0.48356351,98264.0,98263.0,0.00010644]
[1732516169821,0.36197945,98264.0,98263.0,0.00010644]
[1732516171421,0.41280345,98264.0,98263.0,0.00010644]
[1732516182719,0.0506126,98264.0,98263.0,0.00010644]
[1732516182927,0.00117945,98264.0,98263.0,0.18490663]
[1732516183124,0.1217541,98273.0,98264.0,0.30532]
[1732516183329,0.05091216,98275.0,98263.0,0.13408163]
[1732516183330,0.05091216,98275.0,98272.0,0.18207412]
[1732516183632,0.05091216,98275.0,98273.0,0.16738]
[1732516184139,0.05091216,98275.0,98274.0,0.23289312]
[1732516184324,0.05091216,98275.0,98274.0,0.050819]
[1732516184325,9.316e-05,98275.0,98274.0,0.050819]
[1732516185524,0.00965287,98275.0,98274.0,0.050819]
[1732516186228,0.00965287,98275.0,98274.0,0.083419]
[1732516187728,0.12183187,98285.0,98274.0,0.388699]
[1732516187931,0.050812,98289.0,98286.0,0.050813]
[1732516187932,0.12183187,98287.0,98286.0,0.050813]
[1732516188229,0.12183187,98287.0,98286.0,0.185293]
[1732516188430,0.17264387,98289.0,98286.0,0.185293]
[1732516188630,0.12183187,98288.0,98286.0,0.185293]
[1732516189337,0.17264387,98289.0,98286.0,0.185293]
[1732516190235,0.050812,98289.0,98286.0,0.185293]
[1732516190423,0.12183187,98290.0,98286.0,0.185293]
[1732516190424,0.050812,98288.0,98286.0,0.185293]
[1732516191232,0.050812,98288.0,98286.0,0.13448]
[1732516192430,0.12156066,98287.0,98286.0,0.13448]
[1732516193442,0.17237266,98288.0,98286.0,0.13448]
[1732516193831,0.17237266,98288.0,98287.0,0.0004]
[1732516195338,0.050812,98288.0,98287.0,0.0004]
[1732516197039,0.12156066,98290.0,98288.0,0.050812]
[1732516197236,0.41170354,98293.0,98287.0,0.0004]
[1732516197237,9.354e-05,98293.0,98287.0,0.0004]
[1732516197434,9.354e-05,98293.0,98286.0,0.49512]
[1732516197435,9.354e-05,98293.0,98292.0,0.05081]
[1732516198344,9.354e-05,98293.0,98292.0,0.05121]
[1732516199832,0.01972065,98293.0,98292.0,0.0004]
[1732516200027,0.01972065,98293.0,98292.0,0.13432]
[1732516200028,0.07052965,98293.0,98292.0,0.13432]
[1732516201039,0.0605045,98293.0,98292.0,0.13432]
[1732516201826,0.0605045,98293.0,98292.0,0.0004]
[1732516202034,0.07039048,98293.0,98292.0,0.0004]
[1732516202330,0.10159048,98293.0,98292.0,0.0004]
[1732516203139,0.08210254,98293.0,98292.0,0.0004]
[1732516203939,9.354e-05,98293.0,98292.0,0.05121]
[1732516204238,0.00964406,98293.0,98292.0,0.05121]
[1732516206144,0.00964406,98293.0,98292.0,0.35641]
[1732516206339,0.00964406,98293.0,98292.0,0.05121]
[1732516207141,0.01953608,98293.0,98292.0,0.05121]
[1732516208340,0.01976791,98293.0,98292.0,0.05121]
[1732516211441,0.01976791,98293.0,98292.0,0.2332015]
[1732516211844,0.01976791,98293.0,98292.0,0.05121]
[1732516212249,0.01997651,98293.0,98292.0,0.05121]
[1732516212440,0.01997651,98293.0,98292.0,0.2331175]
[1732516212641,0.01997651,98293.0,98292.0,0.05121]
[1732516215250,0.03601078,98293.0,98292.0,0.05121]
[1732516215946,0.036185,98293.0,98292.0,0.05121]
[1732516217949,0.036185,98293.0,98292.0,0.2332083]
[1732516218152,0.036185,98293.0,98292.0,0.05121]
[1732516223449,0.03644508,98293.0,98292.0,0.05121]
[1732516224149,0.08725408,98293.0,98292.0,0.1342]
[1732516224351,0.11805408,98293.0,98292.0,0.13265178]
[1732516224542,0.050812,98287.0,98286.0,0.0004]
[1732516224750,0.08716354,98287.0,98286.0,0.0004]
[1732516224946,0.23937163,98287.0,98286.0,0.0004]
[1732516225146,0.13658411,98287.0,98286.0,0.0004]
[1732516225658,0.13658447,98287.0,98286.0,0.0004]
[1732516226047,0.12047501,98287.0,98286.0,0.0004]
[1732516227556,0.12047535,98287.0,98286.0,0.0004]
[1732516227952,0.050818,98276.0,98275.0,0.1338]
[1732516228157,0.07106008,98276.0,98275.0,0.184619]
[1732516228453,0.07186008,98276.0,98275.0,0.184619]
[1732516228852,0.07186008,98276.0,98275.0,0.1338]
[1732516229262,0.19357448,98276.0,98275.0,0.1338]
[1732516229556,0.07186008,98276.0,98275.0,0.1338]
[1732516230257,0.02104208,98276.0,98274.0,0.02506765]
[1732516230459,0.02024208,98275.0,98268.0,0.1338]
[1732516230661,0.050822,98269.0,98268.0,0.1338]
[1732516230954,0.07106408,98269.0,98268.0,0.1338]
[1732516231157,0.07106408,98269.0,98263.0,0.42728163]
[1732516231158,0.050822,98268.0,98265.0,0.1338]
[1732516231351,0.02104208,98269.0,98265.0,0.1338]
[1732516231352,0.050823,98266.0,98265.0,0.1338]
[1732516231658,0.19355568,98266.0,98265.0,0.1338]
[1732516232057,0.07186508,98266.0,98265.0,0.1338]
[1732516232259,0.07186508,98266.0,98263.0,0.0251424]
[1732516232260,0.050824,98264.0,98263.0,0.0251424]
[1732516232463,0.07106608,98264.0,98263.0,0.1589424]
[1732516232663,0.07186608,98264.0,98263.0,0.1589424]
[1732516234855,0.07186608,98264.0,98263.0,0.13380163]
[1732516235272,0.07186608,98264.0,98263.0,1.63e-06]
[1732516235975,0.19355668,98264.0,98263.0,1.63e-06]
[1732516236171,0.07186608,98264.0,98263.0,1.63e-06]
[1732516238275,0.06179767,98264.0,98263.0,1.63e-06]
[1732516238479,0.07151921,98264.0,98263.0,1.63e-06]
[1732516240278,0.09635285,98264.0,98263.0,1.63e-06]
[1732516242576,0.09652127,98264.0,98263.0,1.63e-06]
[1732516243079,0.07168763,98264.0,98263.0,1.63e-06]
[1732516244170,0.07163531,98264.0,98263.0,1.63e-06]
[1732516244479,0.08766536,98264.0,98263.0,1.63e-06]
[1732516244973,0.08779426,98264.0,98263.0,1.63e-06]
[1732516245980,0.08778392,98264.0,98263.0,1.63e-06]
[1732516251476,0.20920042,98264.0,98263.0,1.63e-06]
[1732516251675,0.08778392,98264.0,98263.0,1.63e-06]
[1732516253278,0.051624,98264.0,98263.0,1.63e-06]
[1732516253485,0.08791863,98264.0,98263.0,1.63e-06]
[1732516253689,0.08791866,98264.0,98263.0,1.63e-06]
[1732516254686,0.13734881,98264.0,98263.0,1.63e-06]
[1732516257282,0.13735118,98264.0,98263.0,1.63e-06]
[1732516257489,0.27001806,98264.0,98263.0,1.63e-06]
[1732516257683,0.31945058,98264.0,98263.0,1.63e-06]
[1732516257993,0.050829,98255.0,98254.0,0.13372]
[1732516258290,0.58409388,98255.0,98254.0,0.13372]
[1732516258586,0.050832,98250.0,98249.0,0.02524219]
[1732516258786,0.050833,98247.0,98246.0,0.42716]
[1732516258982,0.07102883,98247.0,98246.0,0.56097302]
[1732516259186,0.07182883,98247.0,98246.0,0.56097302]
[1732516259389,0.18351924,98247.0,98246.0,0.56097302]
[1732516259691,0.19364954,98247.0,98246.0,0.56097302]
[1732516259889,0.07180922,98247.0,98246.0,0.56097302]
[1732516260088,0.07180922,98247.0,98246.0,9.302e-05]
[1732516260389,0.22410966,98247.0,98246.0,9.302e-05]
[1732516260595,0.47200373,98247.0,98246.0,9.302e-05]
[1732516260798,0.48194747,98247.0,98246.0,9.302e-05]
[1732516261090,0.48194822,98247.0,98246.0,9.302e-05]
[1732516261593,0.48194822,98247.0,98234.0,0.13376]
[1732516261594,0.050839,98235.0,98234.0,0.13376]
[1732516261784,0.411639,98235.0,98234.0,0.13376]
[1732516261984,0.43217892,98235.0,98234.0,0.13376]
[1732516262189,0.050842,98230.0,98229.0,0.13376]
[1732516262390,0.19238471,98230.0,98229.0,0.13376]
[1732516262696,0.07138192,98230.0,98229.0,0.13388705]
[1732516263586,0.07138192,98230.0,98229.0,0.00012705]